bitfinex-derivatives/quotes_SOLF0:USTF0_20250311
["timestamp","ask_amount","ask_price","bid_price","bid_amount"]
[1741701923038,28.87113353,121.76,121.66,8.1257]
[1741701923243,8.2169,121.73,121.66,8.1257]
[1741701923440,28.87113353,121.73,121.62,33.10403353]
[1741701923642,8.2198,121.68,121.61,7.9875]
[1741701923845,28.87113353,121.7,121.61,3.9845]
[1741701924149,4.1298,121.72,121.62,28.87113353]
[1741701924344,0.06157395,121.67,121.64,0.06071189]
[1741701924547,7.395e-05,121.67,121.66,8.2211]
[1741701924747,7.395e-05,121.67,121.62,28.87113353]
[1741701925050,194.0,121.78,121.65,28.87113353]
[1741701925249,197.9989,121.82,121.7,28.87113353]
[1741701925439,28.87113353,121.8,121.67,28.87113353]
[1741701925639,28.87113353,121.77,121.66,4.0365]
[1741701925844,28.87113353,121.72,121.61,3.9845]
[1741701926147,4.0847,121.71,121.61,3.9845]
[1741701926349,0.06264733,121.68,121.65,0.05668903]
[1741701927042,0.06264733,121.68,121.51,152.28113353]
[1741701927043,28.87113353,121.66,121.53,28.87113353]
[1741701927242,28.87113353,121.63,121.53,28.87113353]
[1741701927450,28.87113353,121.63,121.52,4.1411]
[1741701927650,222.87113353,121.66,121.56,89.6167465]
[1741701927950,194.0,121.66,121.56,118.48788003]
[1741701928148,3.9989,121.7,121.62,28.87113353]
[1741701928444,222.87113353,121.79,121.68,28.87113353]
[1741701928650,226.99843353,121.79,121.68,28.87113353]
[1741701928951,0.06075026,121.75,121.72,0.06198916]
[1741701929247,222.87113353,121.76,121.65,28.87113353]
[1741701929549,28.87113353,121.76,121.65,28.87113353]
[1741701929745,28.87113353,121.73,121.61,4.1411]
[1741701929951,28.87113353,121.7,121.61,4.1411]
[1741701930450,0.05228885,121.67,121.64,0.05234643]
[1741701931144,8.885e-05,121.67,121.66,8.2211]
[1741701931352,8.885e-05,121.67,121.66,37.09223353]
[1741701931549,28.87113353,121.78,121.66,31.33113353]
[1741701931739,28.87113353,121.78,121.66,28.87113353]
[1741701931946,194.0,121.77,121.63,28.87113353]
[1741701932248,28.87113353,121.76,121.63,28.87113353]
[1741701932446,198.1607,121.77,121.66,28.87113353]
[1741701932744,0.06048238,121.71,121.68,0.05258417]
[1741701933046,28.87113353,121.7,121.61,4.1411]
[1741701933254,4.0307,121.69,121.57,33.03993353]
[1741701933543,4.0307,121.69,121.6,28.87113353]
[1741701933749,4.0307,121.69,121.65,8.2211]
[1741701933952,4.0307,121.69,121.6,28.87113353]
[1741701934353,0.05818257,121.66,121.63,0.05755287]
[1741701934554,0.05818257,121.66,121.63,28.9286864]
[1741701934754,4.1857,121.72,121.61,8.224]
[1741701935045,0.05931976,121.66,121.63,28.92347949]
[1741701935251,4.1857,121.72,121.63,28.92347949]
[1741701935456,4.1857,121.72,121.63,28.87113353]
[1741701935847,4.1857,121.72,121.61,28.87113353]
[1741701936352,28.87113353,121.71,121.61,28.87113353]
[1741701936549,0.05955727,121.68,121.65,0.05640834]
[1741701936946,222.87113353,121.74,121.65,0.05640834]
[1741701937449,28.87113353,121.71,121.59,28.87113353]
[1741701937645,3.979,121.7,121.56,4.3565]
[1741701937850,28.87113353,121.68,121.56,33.22763353]
[1741701938055,0.05832109,121.64,121.62,0.05192662]
[1741701938552,0.05248225,121.64,121.62,0.06313976]
[1741701938851,3.979,121.7,121.63,28.87113353]
[1741701939057,198.0685,121.73,121.63,33.05723353]
[1741701939355,28.87113353,121.7,121.59,28.87113353]
[1741701939545,3.979,121.69,121.57,271.2]
[1741701939947,0.06158287,121.64,121.62,0.05739118]
[1741701940152,28.87113353,121.67,121.62,0.05739118]
[1741701940349,0.05926125,121.64,121.56,4.1861]
[1741701940650,28.87113353,121.67,121.56,4.1861]
[1741701940855,28.87113353,121.67,121.56,33.05723353]
[1741701941652,194.0,121.68,121.6,0.05428977]
[1741701941857,0.05936622,121.63,121.6,0.05428977]
[1741701942053,0.05936622,121.63,121.59,28.87113353]
[1741701942054,6.622e-05,121.63,121.62,8.2238]
[1741701942353,4.0685,121.73,121.59,2.46]
[1741701942559,4.0958,121.71,121.61,28.87113353]
[1741701942856,4.0958,121.71,121.58,28.87113353]
[1741701943051,222.87113353,121.7,121.58,28.87113353]
[1741701943252,0.05352577,121.66,121.63,0.05346102]
[1741701943457,2.577e-05,121.66,121.64,28.87113353]
[1741701943659,2.577e-05,121.66,121.61,28.87113353]
[1741701944155,2.577e-05,121.66,121.59,28.87113353]
[1741701946161,0.0549176,121.67,121.64,0.05727308]
[1741701946659,0.0549176,121.67,121.56,33.05723353]
[1741701947058,28.87113353,121.68,121.56,33.05723353]
[1741701947254,194.0,121.7,121.63,8.2229]
[1741701947458,194.0,121.7,121.62,28.87113353]
[1741701947859,0.05295433,121.68,121.65,0.06037721]
[1741701948360,0.05295433,121.68,121.67,8.2204]
[1741701948664,194.0,121.77,121.65,31.39151074]
[1741701948862,194.0,121.77,121.69,28.87113353]
[1741701949553,222.87113353,121.81,121.69,28.87113353]
[1741701949761,194.0,121.81,121.72,28.87113353]
[1741701949963,194.0,121.81,121.74,0.05313604]
[1741701950163,0.05891804,121.78,121.74,0.05313604]
[1741701950966,0.05891804,121.78,121.66,4.1782]
[1741701950967,194.0,121.77,121.66,4.1782]
[1741701951264,194.0,121.76,121.66,4.1782]
[1741701951461,222.87113353,121.75,121.61,28.87113353]
[1741701951667,28.87113353,121.72,121.6,271.22]
[1741701951859,28.87113353,121.72,121.58,28.87113353]
[1741701952060,194.0,121.71,121.58,28.87113353]
[1741701952366,0.05691773,121.66,121.64,0.05328453]
[1741701952560,1.773e-05,121.66,121.65,8.2217]
[1741701952771,4.1825,121.79,121.64,302.60441806]
[1741701952964,4.17,121.78,121.7,28.87113353]
[1741701953464,28.87113353,121.82,121.7,28.87113353]
[1741701953668,1.64163178,121.83,121.73,28.87113353]
[1741701954067,0.05933767,121.79,121.77,0.0522552]
[1741701954873,194.0,121.85,121.77,0.0522552]
[1741701954874,194.0,121.94,121.77,31.38338873]
[1741701955166,8.2063,121.88,121.79,28.87113353]
[1741701955371,194.0,121.89,121.79,28.87113353]
[1741701955671,194.0,121.89,121.77,8.4156]
[1741701955867,194.0,121.89,121.79,28.87113353]
[1741701956067,0.0567485,121.85,121.83,0.05833853]
[1741701958673,1.6402854,121.93,121.83,273.65833853]
[1741701958873,1.6402854,121.93,121.88,28.87113353]
[1741701959174,8.2474,121.99,121.88,28.87113353]
[1741701959376,4.1483,121.99,121.88,28.87113353]
[1741701959569,8.2474,121.99,121.88,28.87113353]
[1741701959765,0.06218021,121.95,121.92,0.05749942]
[1741701960764,222.87113353,121.94,121.74,495.10186627]
[1741701960967,0.06218021,121.95,121.87,28.87113353]
[1741701961269,8.2474,121.99,121.9,28.87113353]
[1741701961671,37.11853353,121.99,121.86,37.08773353]
[1741701961876,28.930694,121.96,121.93,0.05218397]
[1741701962069,0.05956047,121.96,121.93,0.05218397]
[1741701962874,8.2474,121.99,121.93,0.05218397]
[1741701963079,194.0,122.03,121.93,0.05218397]
[1741701963275,194.0,122.03,121.95,28.87113353]
[1741701963676,222.87113353,122.09,121.95,28.87113353]
[1741701963866,194.0,122.09,121.98,28.87113353]
[1741701964070,194.0,122.09,121.98,28.93075339]
[1741701964372,194.0,122.13,122.03,28.87113353]
[1741701964577,202.4511,122.13,122.03,28.87113353]
[1741701964772,8.1903,122.12,122.04,33.22703353]
[1741701965074,8.4511,122.13,122.04,4.3559]
[1741701965272,28.87113353,122.12,122.0,28.87113353]
[1741701965477,8.1928,122.08,121.97,28.87113353]
[1741701965775,28.93015367,122.09,121.97,28.87113353]
[1741701965967,28.87113353,122.09,121.97,28.87113353]
[1741701966378,28.87113353,122.09,121.96,8.2191]
[1741701966677,0.05745342,122.04,122.02,0.06298433]
[1741701967072,28.87113353,122.1,122.02,0.06298433]
[1741701967273,194.0,122.11,122.02,0.06298433]
[1741701967471,3.637e-05,122.04,122.03,278.9561]
[1741701967678,194.0,122.17,122.05,0.05490999]
[1741701967973,12.2699,122.22,122.13,28.87113353]
[1741701968172,4.0864,122.22,122.15,28.87113353]
[1741701968375,4.0386,122.23,122.15,28.87113353]
[1741701968572,4.0864,122.26,122.19,28.87113353]
[1741701969078,4.0386,122.29,122.19,31.33113353]
[1741701969377,194.0,122.28,122.17,28.87113353]
[1741701969676,4.0386,122.29,122.19,28.87113353]
[1741701969871,28.87113353,122.26,122.14,37.01333353]
[1741701970075,4.0864,122.25,122.14,8.1422]
[1741701970276,28.87113353,122.24,122.14,8.1422]
[1741701970478,28.87113353,122.22,122.11,28.87113353]
[1741701970680,28.87113353,122.2,122.08,45.66223353]
[1741701970882,28.87113353,122.18,122.08,8.5984]
[1741701971073,4.0947,122.17,122.08,8.5984]
[1741701971270,12.2816,122.17,122.08,8.5984]
[1741701971478,0.05897605,122.14,122.11,0.05180199]
[1741701972079,198.202,122.21,122.12,28.87113353]
[1741701972277,4.0947,122.23,122.14,28.87113353]
[1741701972481,222.87113353,122.25,122.14,28.87113353]
[1741701972482,194.0,122.25,122.14,28.87113353]
[1741701972674,33.07313353,122.27,122.08,4.3602]
[1741701972675,28.87113353,122.22,122.08,4.3602]
[1741701972979,194.0,122.24,122.12,28.87113353]
[1741701973180,28.87113353,122.22,122.11,8.1907]
[1741701973489,4.0947,122.21,122.14,0.0552032]
[1741701973683,8.1881,122.15,122.14,0.0552032]
[1741701973982,28.87113353,122.16,122.08,4.3602]
[1741701974284,28.87113353,122.16,122.06,4.3674]
[1741701974480,4.341,122.17,122.06,4.3674]
[1741701974672,33.21213353,122.17,122.06,4.3674]
[1741701974876,28.87113353,122.15,122.06,4.3674]
[1741701975182,198.3877,122.14,122.03,28.87113353]
[1741701975682,0.05452286,122.1,122.07,0.05200522]
[1741701976382,0.05452286,122.1,122.09,8.1921]
[1741701976585,0.05452286,122.1,122.07,28.92313875]
[1741701976986,0.05452286,122.1,122.07,0.05200522]
[1741701978578,0.05452286,122.1,122.07,28.92313875]
[1741701978782,2.286e-05,122.1,122.07,28.92313875]
[1741701978985,4.341,122.17,122.09,28.87113353]
[1741701979492,4.341,122.17,122.06,28.87113353]
[1741701979788,4.341,122.17,122.07,28.87113353]
[1741701980088,4.341,122.17,122.09,28.87113353]
[1741701980387,4.341,122.17,122.11,28.93106418]
[1741701980586,197.9544,122.2,122.17,8.1867]
[1741701980587,3.9544,122.2,122.17,8.1867]
[1741701980888,194.0,122.26,122.16,28.87113353]
[1741701981183,198.2187,122.26,122.17,0.06147156]
[1741701981587,206.3995,122.26,122.17,28.87113353]
[1741701981791,198.2187,122.26,122.2,0.0540833]
[1741701981998,227.08983353,122.26,122.2,0.0540833]
[1741701982193,198.2187,122.26,122.2,0.0540833]
[1741701982691,227.08983353,122.26,122.2,0.0540833]
[1741701982894,198.2187,122.26,122.2,0.0540833]
[1741701983489,4.2187,122.26,122.2,0.0540833]
[1741701983800,4.2388,122.27,122.21,28.87113353]
[1741701984097,32.98063353,122.31,122.2,0.0540833]
[1741701984301,28.87113353,122.27,122.14,4.0951]
[1741701984488,222.87113353,122.29,122.15,28.87113353]
[1741701984689,222.87113353,122.29,122.17,28.87113353]
[1741701984991,194.0,122.29,122.19,28.87113353]
[1741701985186,8.1798,122.28,122.19,28.87113353]
[1741701985399,194.0,122.29,122.13,37.26143353]
[1741701985400,37.05093353,122.31,122.13,37.26143353]
[1741701985589,8.1798,122.31,122.21,28.87113353]
[1741701985795,0.05726001,122.25,122.22,0.06158031]
[1741701985992,6.001e-05,122.25,122.23,28.87113353]
[1741701986192,8.1046,122.35,122.23,28.87113353]
[1741701986391,194.0,122.38,122.28,28.87113353]
[1741701986598,194.0,122.38,122.3,28.87113353]
[1741701986897,8.1046,122.4,122.33,28.87113353]
[1741701987293,8.1046,122.4,122.33,28.92349355]
[1741701987598,4.0985,122.4,122.36,28.87113353]
[1741701987899,4.0061,122.46,122.36,28.87113353]
[1741701988100,202.1046,122.46,122.36,28.87113353]
[1741701988295,202.1046,122.46,122.4,0.05968003]
[1741701988498,28.87113353,122.45,122.4,0.05968003]
[1741701988897,8.1688,122.44,122.4,0.05968003]
[1741701989195,202.1046,122.46,122.4,0.05968003]
[1741701990199,28.87113353,122.43,122.31,28.87113353]
[1741701990500,194.0,122.42,122.31,28.87113353]
[1741701990700,8.1046,122.46,122.36,28.87113353]
[1741701990996,8.1046,122.46,122.38,28.87113353]
[1741701991197,36.97573353,122.46,122.35,28.87113353]
[1741701991399,0.05418127,122.43,122.41,0.05615912]
[1741701993003,0.05418127,122.43,122.34,28.87113353]
[1741701993303,194.0,122.45,122.36,28.87113353]
[1741701993498,4.0985,122.46,122.38,28.87113353]
[1741701993695,8.1694,122.43,122.36,298.73113353]
[1741701993895,4.0985,122.46,122.36,28.87113353]
[1741701994191,222.87113353,122.45,122.37,8.1729]
[1741701994499,0.0548492,122.42,122.4,0.05372249]
[1741701994698,8.1719,122.4,122.34,8.1749]
[1741701994895,4.223,122.41,122.33,28.87113353]
[1741701995399,227.09413353,122.41,122.29,36.89903353]
[1741701995895,198.223,122.41,122.29,8.0279]
[1741701996104,198.223,122.41,122.26,269.8]
[1741701996105,0.05592431,122.36,122.34,0.05693271]
[1741701996297,0.05592431,122.36,122.35,8.1747]
[1741701996604,4.223,122.41,122.34,0.05693271]
[1741701996803,0.0587783,122.37,122.34,0.05693271]
[1741701996995,0.0587783,122.37,122.27,28.87113353]
[1741701996996,28.92991183,122.37,122.27,28.87113353]
[1741701997202,28.92991183,122.37,122.26,4.2496]
[1741701997398,194.0,122.39,122.31,28.87113353]
[1741701997592,4.223,122.41,122.33,28.87113353]
[1741701997989,4.223,122.41,122.34,8.1751]
[1741701997990,8.1721,122.39,122.34,8.1751]
[1741701998393,0.0628335,122.38,122.36,0.05718916]
[1741701999004,0.0628335,122.38,122.37,8.1734]
[1741701999296,4.2294,122.45,122.36,0.05718916]
[1741701999496,4.3608,122.44,122.36,0.05718916]
[1741701999796,4.3608,122.44,122.31,269.8]
[1741701999995,4.3608,122.44,122.36,28.87113353]
[1741702000196,4.3608,122.44,122.38,28.87113353]
[1741702000501,194.0,122.5,122.4,28.87113353]
[1741702000689,28.87113353,122.47,122.39,0.06301622]
[1741702000896,28.87113353,122.47,122.36,28.87113353]
[1741702001090,8.1709,122.41,122.36,8.1739]
[1741702001304,28.87113353,122.45,122.34,28.87113353]
[1741702001598,194.0,122.46,122.36,28.87113353]
[1741702001799,0.05413036,122.41,122.39,28.87113353]
[1741702002001,0.05413036,122.41,122.38,0.05295759]
[1741702002301,0.05413036,122.41,122.31,269.8]
[1741702002302,28.87113353,122.42,122.3,28.87113353]
[1741702002494,4.37763606,122.41,122.38,0.05873901]
[1741702002696,28.87113353,122.39,122.28,8.665]
[1741702002898,194.0,122.38,122.28,8.665]
[1741702003097,28.87113353,122.37,122.28,8.1793]
[1741702003300,4.0302,122.37,122.27,28.87113353]
[1741702003502,4.0302,122.37,122.29,28.87113353]
[1741702003806,0.05702055,122.34,122.32,0.05481043]
[1741702004292,0.05702055,122.34,122.29,28.87113353]
[1741702004293,0.05702055,122.34,122.26,28.87113353]
[1741702004698,194.0,122.36,122.3,8.1777]
[1741702004898,194.0,122.36,122.26,28.87113353]
[1741702005598,0.05573406,122.32,122.3,0.0516972]
[1741702005798,194.05573406,122.32,122.23,28.87113353]
[1741702006000,4.1192,122.31,122.23,28.87113353]
[1741702006901,0.05616529,122.28,122.26,0.05219666]
[1741702007302,0.05616529,122.28,122.21,37.05463353]
[1741702007501,0.05616529,122.28,122.18,119.08092853]
[1741702007907,194.0,122.29,122.18,119.08092853]
[1741702008107,194.0,122.28,122.18,119.08092853]
[1741702008299,194.0,122.28,122.18,90.209795]
[1741702008608,7.901e-05,122.24,122.22,0.05483084]
[1741702008813,7.901e-05,122.24,122.22,28.92596437]
[1741702009110,7.901e-05,122.24,122.22,0.05483084]
[1741702010496,7.901e-05,122.24,122.16,269.76]
[1741702010697,7.901e-05,122.24,122.15,28.87113353]
[1741702010908,194.0,122.25,122.14,21.09128697]
[1741702011109,28.87113353,122.23,122.14,21.09128697]
[1741702011702,194.0,122.22,122.14,21.09128697]
[1741702011903,0.0539799,122.2,122.17,0.05794667]
[1741702012107,0.0539799,122.2,122.15,8.188]
[1741702012310,0.0539799,122.2,122.12,28.87113353]
[1741702012611,194.0,122.21,122.1,28.87113353]
[1741702013304,194.0,122.21,122.14,0.05952799]
[1741702013305,0.05445452,122.17,122.14,0.05952799]
[1741702013810,195.6354567,122.29,122.15,28.87113353]
[1741702014011,195.6354567,122.29,122.18,28.87113353]
[1741702014203,4.1411,122.28,122.18,28.87113353]
[1741702014513,33.01223353,122.28,122.16,33.00653353]
[1741702015013,28.87113353,122.26,122.16,28.87113353]
[1741702015208,0.05530811,122.23,122.21,0.06294839]
[1741702015410,222.92644164,122.23,122.11,33.00653353]
[1741702015605,222.92644164,122.23,122.08,4.0631]
[1741702015606,28.87113353,122.2,122.1,8.191]
[1741702015805,28.87113353,122.17,122.05,28.87113353]
[1741702016112,8.1893,122.14,122.08,8.1926]
[1741702016303,8.1893,122.14,122.05,28.87113353]
[1741702016304,194.0,122.16,122.05,28.87113353]
[1741702016507,0.05991665,122.12,122.04,90.209795]
[1741702016700,194.0,122.11,122.04,90.209795]
[1741702016907,194.0,122.11,122.04,119.08092853]
[1741702017213,28.87113353,122.11,122.04,90.209795]
[1741702017413,198.2011,122.1,122.04,90.209795]
[1741702017707,8.1938,122.07,122.0,88.1976]
[1741702017905,2.46,122.07,122.0,88.1976]
[1741702018105,28.87113353,122.09,122.0,80.0]
[1741702018307,198.2011,122.1,122.0,80.0]
[1741702018705,198.2011,122.1,122.01,28.87113353]
[1741702019105,0.05835079,122.07,122.04,0.06168758]
[1741702020312,0.05835079,122.07,122.04,28.93282111]
[1741702020506,194.0,122.18,122.04,330.38395464]
[1741702020709,4.2994,122.21,122.15,28.87113353]
[1741702021106,1.63639338,122.22,122.15,28.87113353]
[1741702021311,1.63639338,122.22,122.17,28.87113353]
[1741702021514,1.63639338,122.22,122.21,8.1841]
[1741702021709,0.05328797,122.21,122.18,0.05209502]
[1741702022106,1.63639338,122.22,122.2,28.87113353]
[1741702022410,4.3097,122.31,122.2,28.87113353]
[1741702022617,4.0592,122.32,122.25,28.87113353]
[1741702022807,4.0592,122.32,122.22,28.87113353]
[1741702023004,194.0,122.33,122.28,28.87113353]
[1741702023310,194.0,122.33,122.25,28.87113353]
[1741702023507,0.05427632,122.32,122.29,0.05329878]
[1741702023707,28.87113353,122.31,122.2,4.0579]
[1741702024007,4.3097,122.3,122.19,33.25523353]
[1741702024317,8.3689,122.3,122.19,33.25523353]
[1741702024519,28.87113353,122.28,122.16,28.87113353]
[1741702024705,8.1807,122.27,122.16,28.87113353]
[1741702024906,0.05559986,122.23,122.15,4.3841]
[1741702025214,8.3689,122.3,122.19,28.87113353]
[1741702025717,28.87113353,122.27,122.15,4.3841]
[1741702025910,37.24003353,122.3,122.18,28.87113353]
[1741702026115,8.3689,122.3,122.21,28.87113353]
[1741702026412,0.058643,122.27,122.24,0.05317387]
[1741702026618,194.0,122.26,122.14,21.07432923]
[1741702026918,222.87113353,122.25,122.14,21.07432923]
[1741702027318,222.87113353,122.25,122.13,33.26863353]
[1741702027510,28.87113353,122.22,122.1,28.87113353]
[1741702027716,194.0,122.21,122.13,28.87113353]
[1741702027914,0.05356689,122.2,122.18,0.05386638]
[1741702028120,194.0,122.26,122.19,28.87113353]
[1741702028509,194.0,122.26,122.17,4.1332]
[1741702029016,194.0,122.25,122.14,4.0598]
[1741702029220,194.0,122.25,122.15,4.1332]
[1741702029523,28.92584876,122.21,122.18,0.0584348]
[1741702029719,4.0468,122.2,122.18,0.0584348]
[1741702029919,194.0,122.24,122.16,28.87113353]
[1741702030119,194.0,122.24,122.18,0.0587577]
[1741702030120,0.05672629,122.2,122.18,0.0587577]
[1741702030322,2.629e-05,122.2,122.19,8.1854]
[1741702030521,2.629e-05,122.2,122.19,37.05653353]
[1741702030915,2.629e-05,122.2,122.18,0.0587577]
[1741702031912,8.18532629,122.2,122.18,0.0587577]
[1741702032119,2.629e-05,122.2,122.18,0.0587577]
[1741702032617,2.629e-05,122.2,122.12,3.992]
[1741702033120,194.0,122.23,122.12,3.992]
[1741702033422,28.87113353,122.21,122.12,3.992]
[1741702033613,194.0,122.2,122.11,4.0346]
[1741702033815,0.05275109,122.18,122.15,0.05412205]
[1741702034011,194.0,122.17,122.15,2.205e-05]
[1741702034227,194.0,122.16,122.15,2.205e-05]
[1741702034415,0.05275109,122.18,122.15,2.205e-05]
[1741702034818,28.92388462,122.18,122.15,2.205e-05]
[1741702035013,8.1867,122.17,122.15,2.205e-05]
[1741702035213,194.0,122.16,122.08,143.15276203]
[1741702035422,28.87113353,122.14,122.02,37.11143353]
[1741702035722,28.87113353,122.11,121.99,119.08092853]
[1741702035911,194.0,122.1,121.99,119.08092853]
[1741702036116,4.2883,122.13,122.02,28.87113353]
[1741702036316,0.05857886,122.06,122.05,28.87113353]
[1741702036512,4.2883,122.13,122.04,0.05159796]
[1741702036724,0.05755936,122.07,122.02,28.87113353]
[1741702036922,4.2883,122.13,122.02,28.87113353]
[1741702037116,4.2883,122.13,122.07,0.05347496]
[1741702037517,9.779e-05,122.11,122.08,28.87113353]
[1741702037714,9.779e-05,122.11,122.1,8.1914]
[1741702037915,222.87113353,122.2,122.09,8.6137]
[1741702038117,194.0,122.19,122.11,28.87113353]
[1741702038521,194.0,122.19,122.1,4.172]
[1741702038718,194.0,122.19,122.09,8.6137]
[1741702039317,0.05759376,122.15,122.13,0.05508371]
[1741702039522,28.87113353,122.23,122.13,28.92621724]
[1741702039720,28.87113353,122.23,122.13,0.05508371]
[1741702039925,28.87113353,122.23,122.1,28.87113353]
[1741702040227,28.87113353,122.23,122.05,14.0355901]
[1741702040228,8.1888,122.14,122.07,28.87113353]
[1741702040423,28.87113353,122.14,122.05,8.3819]
[1741702040723,194.0,122.16,122.07,28.87113353]
[1741702040724,210.3458,122.16,122.07,28.87113353]
[1741702040925,0.05231988,122.11,122.08,0.05186709]
[1741702041325,0.05231988,122.11,122.05,8.3819]
[1741702041524,0.05231988,122.11,122.08,0.06222087]
[1741702042634,28.87113353,122.17,122.08,0.06222087]
[1741702042925,28.87113353,122.14,122.05,8.3819]
[1741702043320,8.1919,122.1,122.05,8.3819]
[1741702043519,28.87113353,122.14,122.05,8.3819]
[1741702043724,0.05514462,122.09,122.06,0.05378439]
[1741702043924,0.05514462,122.09,122.07,28.87113353]
[1741702044134,4.059,122.16,122.05,8.3819]
[1741702044425,28.87113353,122.14,122.05,8.3819]
[1741702044630,28.87113353,122.14,122.03,224.63491476]
[1741702044821,37.06003353,122.14,122.05,8.1941]
[1741702045027,194.0,122.15,122.04,28.87113353]
[1741702045226,4.059,122.16,122.08,0.05206136]
[1741702045425,0.05485176,122.11,122.08,0.05206136]
[1741702045620,0.05485176,122.11,122.04,28.87113353]
[1741702046033,0.05485176,122.11,122.08,0.0522879]
[1741702047326,194.0,122.18,122.08,0.0522879]
[1741702047626,4.099,122.19,122.1,28.87113353]
[1741702047830,226.93143353,122.23,122.1,28.87113353]
[1741702048031,226.93143353,122.23,122.11,4.307]
[1741702048434,8.1856,122.19,122.13,8.189]
[1741702048726,0.05606063,122.18,122.16,0.05323491]
[1741702048927,8.1845,122.21,122.16,0.05323491]
[1741702049127,0.06209838,122.18,122.16,0.05323491]
[1741702049526,0.061729,122.18,122.16,0.05323491]
[1741702049731,0.061729,122.18,122.11,4.307]
[1741702050032,0.061729,122.18,122.12,8.1899]
[1741702050232,0.061729,122.18,122.11,4.307]
[1741702051028,0.061729,122.18,122.13,0.05902004]
[1741702051623,222.87113353,122.17,122.06,89.87582966]
[1741702051829,202.527,122.16,122.06,89.87582966]
[1741702052136,210.7149,122.16,122.05,94.12962966]
[1741702052339,8.527,122.16,122.07,28.87113353]
[1741702052635,8.1911,122.11,122.08,4.3424]
[1741702052836,37.39813353,122.16,122.05,94.12962966]
[1741702052837,194.0,122.15,122.05,94.12962966]
[1741702053030,0.05272152,122.13,122.1,0.05606282]
[1741702053232,28.92385505,122.13,122.05,94.12962966]
[1741702053438,28.87113353,122.13,122.1,0.05385897]
[1741702053942,28.92913955,122.13,122.1,0.05385897]
[1741702054139,0.05800602,122.13,122.1,0.05385897]
[1741702054336,0.05800602,122.13,122.05,4.2538]
[1741702054735,222.87113353,122.15,122.05,4.2538]
[1741702055443,28.87113353,122.12,122.05,4.2538]
[1741702055637,0.06259568,122.11,122.0,84.2936]
[1741702055840,28.87113353,122.08,122.0,84.2936]
[1741702056142,4.2861,122.07,122.0,84.2936]
[1741702057039,8.1961,122.03,122.02,0.05813855]
[1741702057339,0.0613307,122.05,122.02,0.05813855]
[1741702059043,0.0613307,122.05,122.03,8.1961]
[1741702059244,0.0613307,122.05,122.02,0.05813855]
[1741702060848,0.0613307,122.05,122.02,28.92927208]
[1741702061053,0.0613307,122.05,122.04,8.1955]
[1741702061649,4.2861,122.13,122.09,8.1917]
[1741702061953,28.87113353,122.16,122.06,28.87113353]
[1741702062153,37.05873353,122.16,122.1,8.1909]
[1741702062349,198.2183,122.17,122.1,8.1909]
[1741702062547,198.2183,122.17,122.06,28.87113353]
[1741702062747,198.2183,122.17,122.12,8.19]
[1741702062942,0.05827391,122.13,122.1,0.05598356]
[1741702063253,8.1866,122.18,122.12,8.1897]
[1741702063455,0.06033714,122.13,122.1,4.36479983]
[1741702063648,194.0,122.18,122.06,28.87113353]
[1741702063952,28.87113353,122.19,122.0,80.0]
[1741702063953,28.93100291,122.13,122.1,4.544e-05]
[1741702064150,226.8931,122.12,122.01,89.87582966]
[1741702064355,222.87113353,122.11,122.01,89.87582966]
[1741702065247,8.1932,122.08,122.01,89.87582966]
[1741702065452,0.05527015,122.07,122.05,0.05205947]
[1741702066451,0.05527015,122.07,122.06,8.1941]
[1741702066847,194.0,122.16,122.05,0.05205947]
[1741702067052,1.42561603,122.2,122.05,0.05205947]
[1741702067053,8.0622,122.18,122.07,28.87113353]
[1741702067851,346.05327555,122.23,122.1,28.87113353]
[1741702068066,123.18214202,122.23,122.13,28.87113353]
[1741702068254,123.18214202,122.23,122.11,0.06002509]
[1741702068255,123.18214202,122.23,122.17,28.87113353]
[1741702068454,123.18214202,122.23,122.21,8.184]
[1741702068654,123.18214202,122.23,122.08,422.92063353]
[1741702068854,131.36494202,122.23,122.09,1.4812249]
[1741702069154,123.18214202,122.23,122.09,1.4812249]
[1741702069553,0.05630311,122.17,122.15,0.05858544]
[1741702069953,222.87113353,122.24,122.12,28.87113353]
[1741702070259,7.697e-05,122.17,122.15,0.05295336]
[1741702070559,28.87113353,122.24,122.12,28.87113353]
[1741702071155,28.87113353,122.21,122.09,118.74696319]
[1741702071348,0.0557125,122.19,122.17,0.05947415]
[1741702071553,28.87113353,122.18,122.09,89.87582966]
[1741702072554,28.87113353,122.18,122.06,118.74696319]
[1741702072758,28.87113353,122.18,122.12,0.06236171]